bitfinex-derivatives/quotes_BTCF0:USTF0_20241120
["timestamp","ask_amount","ask_price","bid_price","bid_amount"]
[1732103458802,0.06005083,93578.0,93577.0,0.053375]
[1732103459105,0.053375,93578.0,93577.0,0.053375]
[1732103460016,0.053371,93585.0,93584.0,0.053371]
[1732103460211,0.06004675,93585.0,93584.0,0.414171]
[1732103460903,0.00667575,93585.0,93584.0,0.414171]
[1732103461107,0.06004675,93585.0,93584.0,0.414171]
[1732103461707,0.00667575,93585.0,93584.0,0.414171]
[1732103461913,0.08186636,93595.0,93584.0,0.3608]
[1732103462214,0.053369,93590.0,93589.0,0.053368]
[1732103462415,0.00667525,93590.0,93584.0,0.3608]
[1732103462612,0.053367,93591.0,93590.0,0.053368]
[1732103464309,0.053367,93591.0,93584.0,0.3608]
[1732103464310,0.1,93600.0,93589.0,0.18973426]
[1732103464617,0.1,93600.0,93584.0,0.3608]
[1732103464618,0.053366,93596.0,93595.0,0.414164]
[1732103465116,0.153362,93600.0,93599.0,0.053363]
[1732103465316,0.16003669,93600.0,93599.0,0.053363]
[1732103465611,0.17667553,93600.0,93599.0,0.053363]
[1732103466004,0.16003669,93600.0,93599.0,0.053363]
[1732103466410,0.10667469,93600.0,93596.0,0.0321]
[1732103466720,0.00667469,93599.0,93598.0,0.053363]
[1732103467316,0.1,93600.0,93599.0,0.053363]
[1732103467505,0.0325,93629.0,93599.0,0.053363]
[1732103467704,0.0325,93629.0,93621.0,0.05335]
[1732103467905,0.05335,93624.0,93623.0,0.053349]
[1732103468106,0.053351,93623.0,93618.0,0.3608]
[1732103468311,0.0325,93629.0,93618.0,0.3608]
[1732103468503,0.053354,93614.0,93613.0,0.005]
[1732103468701,0.053355,93612.0,93611.0,0.3608]
[1732103468915,0.053355,93612.0,93611.0,0.414156]
[1732103469314,0.053353,93617.0,93616.0,0.053353]
[1732103469711,0.10230594,93626.0,93611.0,0.3608]
[1732103470021,0.053354,93615.0,93611.0,0.3608]
[1732103470217,0.10230594,93626.0,93611.0,0.3608]
[1732103470516,0.10230594,93626.0,93619.0,0.3608]
[1732103470517,0.053351,93620.0,93619.0,0.3608]
[1732103471016,0.49510594,93633.0,93619.0,0.3608]
[1732103471215,0.053347,93627.0,93619.0,0.414151]
[1732103471408,0.0317,93628.0,93619.0,0.414151]
[1732103471409,0.05335,93623.0,93619.0,0.3608]
[1732103471614,0.0317,93628.0,93619.0,0.3608]
[1732103471825,0.0317,93628.0,93621.0,0.05335]
[1732103472014,0.053349,93623.0,93621.0,0.05335]
[1732103472216,0.053351,93620.0,93619.0,0.3608]
[1732103472811,0.49510594,93633.0,93619.0,0.3608]
[1732103473014,0.49510594,93633.0,93622.0,0.05335]
[1732103473015,0.3608,93633.0,93622.0,0.05335]
[1732103473220,0.053349,93624.0,93622.0,0.05335]
[1732103473515,0.053349,93623.0,93622.0,0.05335]
[1732103473919,0.053346,93628.0,93622.0,0.10230594]
[1732103474124,0.053346,93628.0,93627.0,0.414147]
[1732103474307,0.053346,93628.0,93627.0,0.3608]
[1732103475508,0.053352,93618.0,93617.0,0.0307]
[1732103476312,0.10230594,93624.0,93610.0,0.414156]
[1732103476313,0.053356,93611.0,93610.0,0.3608]
[1732103476518,0.053356,93611.0,93610.0,0.43550814]
[1732103477719,0.053356,93611.0,93610.0,0.38215114]
[1732103478622,0.053356,93611.0,93610.0,0.3608]
[1732103483624,0.053356,93611.0,93608.0,0.00160223]
[1732103483625,0.053357,93609.0,93608.0,0.00160223]
[1732103483823,0.053361,93603.0,93602.0,0.3608]
[1732103484127,0.053361,93603.0,93594.0,0.5951242]
[1732103484128,0.053365,93595.0,93594.0,0.5951242]
[1732103484315,0.06003897,93595.0,93594.0,0.5901242]
[1732103484510,0.06003897,93595.0,93594.0,0.5503333]
[1732103484727,0.06003897,93595.0,93594.0,0.3608]
[1732103484915,0.06003897,93595.0,93594.0,0.414166]
[1732103485114,0.3608,93628.0,93599.0,0.053362]
[1732103485115,0.053362,93601.0,93599.0,0.053362]
[1732103485427,0.053363,93599.0,93597.0,0.053364]
[1732103485621,0.053363,93599.0,93598.0,0.053363]
[1732103486724,0.053364,93597.0,93596.0,0.25244766]
[1732103486917,0.10230594,93617.0,93596.0,0.25244766]
[1732103487133,0.10230594,93617.0,93606.0,0.3608]
[1732103487134,0.053358,93607.0,93606.0,0.3608]
[1732103487513,0.06003217,93607.0,93606.0,0.3608]
[1732103490022,0.053358,93607.0,93606.0,0.3608]
[1732103490419,0.3608,93620.0,93606.0,0.3608]
[1732103490619,0.053354,93615.0,93614.0,0.3608]
[1732103493930,0.053354,93615.0,93614.0,0.414154]
[1732103495030,0.053354,93615.0,93614.0,0.3608]
[1732103498736,0.053354,93615.0,93611.0,0.18973435]
[1732103499038,0.053354,93615.0,93608.0,0.18973435]
[1732103499039,0.053356,93611.0,93608.0,0.18973435]
[1732103499338,0.053356,93611.0,93603.0,0.005]
[1732103499339,0.053359,93606.0,93605.0,0.25244766]
[1732103499528,0.053359,93605.0,93604.0,0.30580766]
[1732103500037,0.053357,93610.0,93609.0,0.053357]
[1732103500839,0.053357,93610.0,93609.0,0.15566294]
[1732103501225,0.053357,93610.0,93609.0,0.40904158]
[1732103501724,0.053357,93610.0,93609.0,0.15566294]
[1732103502034,0.053357,93610.0,93609.0,0.40904158]
[1732103502225,0.053357,93610.0,93609.0,0.4090635]
[1732103502425,0.0328,93623.0,93609.0,0.3557065]
[1732103502735,0.053351,93619.0,93618.0,0.3608]
[1732103503642,0.053351,93619.0,93618.0,0.447452]
[1732103504337,0.053351,93619.0,93618.0,0.3941]
[1732103504838,0.053351,93619.0,93618.0,0.447452]
[1732103505233,0.114342,93636.0,93618.0,0.447452]
[1732103505234,0.061,93636.0,93618.0,0.3941]
[1732103505439,0.061,93636.0,93628.0,0.3608]
[1732103505440,0.053346,93629.0,93628.0,0.3608]
[1732103505642,0.061,93636.0,93621.0,0.005]
[1732103505643,0.05335,93622.0,93621.0,0.005]
[1732103505851,0.05335,93622.0,93620.0,0.10230594]
[1732103505852,0.05335,93621.0,93620.0,0.3557065]
[1732103506138,0.05335,93621.0,93620.0,0.10230594]
[1732103506337,0.05335,93621.0,93620.0,0.35570957]
[1732103506647,0.053349,93624.0,93621.0,0.05335]
[1732103506836,0.053349,93624.0,93622.0,0.25339804]
[1732103507038,0.10097262,93636.0,93622.0,0.25339804]
[1732103507039,0.053349,93623.0,93622.0,0.25339804]
[1732103507241,0.05335,93622.0,93621.0,0.25339804]
[1732103507436,0.3608,93635.0,93620.0,0.10230594]
[1732103507633,0.053348,93625.0,93624.0,0.19003624]
[1732103507943,0.3608,93635.0,93623.0,0.19003624]
[1732103508132,0.053349,93624.0,93623.0,0.19003624]
[1732103508327,0.053343,93634.0,93622.0,0.19003624]
[1732103508646,0.053349,93624.0,93623.0,0.19003624]
[1732103510332,0.053349,93623.0,93622.0,0.55083624]
[1732103511443,0.053349,93623.0,93622.0,0.3608]
[1732103512835,0.053349,93623.0,93622.0,0.55077712]
[1732103513735,0.053349,93623.0,93622.0,0.3608]
[1732103523336,0.053347,93627.0,93622.0,0.61419804]
[1732103523632,0.053342,93635.0,93625.0,0.2535586]
[1732103523836,0.053342,93635.0,93630.0,0.19014935]
[1732103524036,0.053345,93631.0,93630.0,0.19013151]
[1732103524442,0.053342,93635.0,93625.0,0.2535586]
[1732103524735,0.053347,93626.0,93625.0,0.2535586]
[1732103525047,0.053342,93635.0,93624.0,0.2535586]
[1732103525048,0.053348,93625.0,93624.0,0.2535586]
[1732103525246,0.053348,93625.0,93624.0,0.3608]
[1732103525640,0.053348,93625.0,93624.0,0.414149]
[1732103526152,0.084142,93636.0,93624.0,0.414149]
[1732103526451,0.053346,93628.0,93627.0,0.25342235]
[1732103526639,0.084142,93636.0,93626.0,0.25342235]
[1732103526640,0.053347,93627.0,93626.0,0.25342235]
[1732103526841,0.053336,93646.0,93638.0,0.053341]
[1732103527048,0.053339,93640.0,93639.0,0.46310594]
[1732103527347,0.0316,93653.0,93641.0,0.053338]
[1732103527554,0.053333,93652.0,93641.0,0.053338]
[1732103527740,0.053338,93643.0,93641.0,0.053338]
[1732103527941,0.053336,93646.0,93643.0,0.053337]
[1732103528249,0.0316,93653.0,93645.0,0.1899338]
[1732103528450,0.0316,93653.0,93643.0,0.18987535]
[1732103528758,0.053336,93646.0,93643.0,0.053338]
[1732103529953,0.053337,93644.0,93643.0,0.053338]
[1732103530546,0.10230594,93651.0,93640.0,0.0309]
[1732103530850,0.053339,93641.0,93640.0,0.0309]
[1732103535951,0.10230594,93651.0,93641.0,0.053338]
[1732103536359,0.10230594,93651.0,93640.0,0.0309]
[1732103536542,0.053339,93641.0,93640.0,0.0309]
[1732103538947,0.053339,93641.0,93640.0,0.084239]
[1732103539350,0.10230594,93651.0,93640.0,0.0309]
[1732103539546,0.053334,93650.0,93642.0,0.053338]
[1732103539865,0.053339,93641.0,93640.0,0.0309]
[1732103540047,0.053339,93641.0,93638.0,0.03928162]
[1732103540048,0.05334,93639.0,93638.0,0.03928162]
[1732103540251,0.053343,93633.0,93632.0,0.18980849]
[1732103540457,0.053339,93641.0,93631.0,0.39968271]
[1732103540458,0.053344,93632.0,93631.0,0.39968271]
[1732103540673,0.053344,93632.0,93631.0,0.45302771]
[1732103540958,0.053344,93632.0,93631.0,0.39968271]
[1732103541660,0.053344,93632.0,93631.0,0.03888271]
[1732103541962,0.053347,93627.0,93626.0,0.005]
[1732103542165,0.053347,93627.0,93623.0,0.3608]
[1732103542370,0.10230594,93629.0,93623.0,0.3608]
[1732103542371,0.053349,93624.0,93623.0,0.3608]
[1732103542669,0.053349,93624.0,93623.0,0.40078616]
[1732103547168,0.053338,93643.0,93627.0,0.053346]
[1732103547368,0.031,93654.0,93639.0,0.3608]
[1732103547666,0.048339,93640.0,93639.0,0.3608]
[1732103548952,0.048339,93640.0,93628.0,0.0327]
[1732103549156,0.15564094,93648.0,93623.0,0.39939936]
[1732103549157,0.053336,93646.0,93623.0,0.39939936]
[1732103549365,0.053349,93624.0,93623.0,0.39939936]
[1732103550054,0.053349,93624.0,93623.0,0.3608]
[1732103553772,0.0325,93633.0,93614.0,0.29213243]
[1732103553773,0.053353,93616.0,93614.0,0.29213243]
[1732103553960,0.0325,93633.0,93615.0,0.46310594]
[1732103554159,0.0325,93633.0,93623.0,0.46310594]
[1732103554474,0.053348,93625.0,93623.0,0.46310594]
[1732103554671,0.0325,93633.0,93623.0,0.46310594]
[1732103554672,0.053349,93624.0,93623.0,0.46310594]
[1732103556174,0.053349,93624.0,93623.0,0.10230594]
[1732103556664,0.0066731,93624.0,93623.0,0.3608]
[1732103556867,0.3608,93630.0,93617.0,0.18990814]
[1732103557070,0.3608,93630.0,93616.0,0.18990814]
[1732103557267,0.053353,93616.0,93615.0,0.58977286]
[1732103557466,0.053353,93616.0,93615.0,0.39986472]
[1732103557769,0.053353,93616.0,93615.0,0.3608]
[1732103557967,0.053353,93616.0,93615.0,0.55068393]
[1732103558871,0.053353,93616.0,93615.0,0.3608]
[1732103559369,0.053349,93625.0,93613.0,0.18991168]
[1732103559557,0.053355,93613.0,93612.0,0.03995709]
[1732103559761,0.053355,93612.0,93608.0,0.18991168]
[1732103559968,0.053355,93612.0,93607.0,0.03]
[1732103559969,0.06002839,93612.0,93609.0,0.18991168]
[1732103560270,0.06002839,93612.0,93611.0,0.03839009]
[1732103560975,0.06002839,93612.0,93611.0,8.61e-05]
[1732103561476,0.06002839,93612.0,93603.0,0.005]
[1732103561477,0.05336,93604.0,93603.0,0.005]
[1732103561674,0.053364,93597.0,93596.0,0.00160262]
[1732103562065,0.06003882,93597.0,93596.0,0.00160262]
[1732103562367,0.05346294,93597.0,93596.0,0.00160262]
[1732103562771,0.053365,93596.0,93590.0,0.03879321]
[1732103562976,9.894e-05,93597.0,93589.0,0.18991168]
[1732103563274,0.053367,93591.0,93588.0,0.22959856]
[1732103563578,0.053369,93588.0,93587.0,0.65295241]
[1732103563773,0.053369,93588.0,93587.0,0.46310594]
[1732103563982,9.894e-05,93597.0,93587.0,0.51647594]
[1732103564274,0.053367,93592.0,93591.0,0.18977767]
[1732103564475,0.053367,93591.0,93590.0,0.18977767]
[1732103565377,9.894e-05,93597.0,93587.0,0.50178174]
[1732103565378,0.053369,93589.0,93587.0,0.50178174]
[1732103565764,0.053369,93589.0,93587.0,0.55515174]
[1732103566167,0.053369,93588.0,93587.0,0.50178174]
[1732103567678,0.053367,93593.0,93587.0,0.50178174]
[1732103568577,0.053367,93593.0,93592.0,0.053367]
[1732103569080,0.05346294,93597.0,93596.0,0.053365]
[1732103569282,0.005,93608.0,93607.0,0.053358]
[1732103569583,0.00160267,93632.0,93621.0,0.05335]
[1732103569584,0.005,93622.0,93621.0,0.05335]
[1732103569763,0.05835,93622.0,93621.0,0.51645594]
[1732103569967,0.053348,93626.0,93625.0,0.053348]
[1732103570872,0.00160267,93632.0,93622.0,0.3608]
[1732103570873,0.053349,93623.0,93622.0,0.3608]
[1732103572669,0.053349,93623.0,93622.0,0.41415]
[1732103572871,0.053349,93623.0,93622.0,0.3608]
[1732103574271,0.053349,93623.0,93617.0,0.19470914]
[1732103574487,0.053352,93618.0,93614.0,0.10230594]
[1732103574669,0.053353,93616.0,93615.0,0.18970914]
[1732103575074,0.053349,93624.0,93615.0,0.1897085]
[1732103575372,0.053348,93625.0,93615.0,0.1897085]
[1732103575577,0.005,93632.0,93617.0,0.1897085]
[1732103575874,0.053354,93615.0,93614.0,0.1897085]
[1732103576080,0.053354,93614.0,93612.0,0.3608]
[1732103576281,0.053355,93613.0,93612.0,0.3608]
[1732103577485,0.053355,93613.0,93612.0,0.414155]
[1732103578772,0.06002826,93613.0,93612.0,0.414155]
[1732103578987,0.06002826,93613.0,93612.0,0.60393627]
[1732103579187,0.00667326,93613.0,93612.0,0.414155]
[1732103579487,0.053353,93616.0,93614.0,0.053354]
[1732103579686,0.053354,93615.0,93614.0,0.053354]
[1732103579886,0.053355,93613.0,93612.0,0.55057198]
[1732103580186,0.053355,93613.0,93612.0,0.3608]
[1732103580783,0.053355,93613.0,93612.0,0.55056477]
[1732103580996,0.053355,93613.0,93612.0,0.3608]
[1732103582184,0.053353,93617.0,93616.0,0.053353]
[1732103582576,0.06002604,93617.0,93616.0,0.053353]
[1732103582777,0.053353,93617.0,93616.0,0.053353]
[1732103582975,0.00667304,93617.0,93616.0,0.053353]
[1732103583191,0.00667304,93617.0,93616.0,0.086153]
[1732103583579,0.05335,93622.0,93621.0,0.05335]
[1732103584190,0.05335,93622.0,93621.0,0.41415]
[1732103585485,0.053345,93633.0,93632.0,0.053343]
[1732103585685,0.053345,93633.0,93632.0,0.414143]
[1732103589184,0.053345,93633.0,93632.0,0.537143]
[1732103589691,0.053345,93633.0,93632.0,0.57544813]
[1732103589894,0.053345,93633.0,93632.0,0.45244813]
[1732103590194,0.0532589,93633.0,93632.0,0.45244813]
[1732103592583,0.0532589,93633.0,93632.0,0.57544813]
[1732103592784,0.0532589,93633.0,93632.0,0.39910513]
[1732103592986,0.0532589,93633.0,93632.0,0.03830513]
[1732103593283,0.0532589,93633.0,93619.0,0.123]
[1732103593491,0.053348,93628.0,93627.0,0.053347]
[1732103593694,0.053348,93628.0,93627.0,0.414147]
[1732103594387,0.0684,93639.0,93627.0,0.3608]
[1732103594589,0.053343,93634.0,93633.0,0.053343]
[1732103595183,0.053346,93629.0,93628.0,0.053346]
[1732103598900,0.053346,93629.0,93628.0,0.24311077]
[1732103599805,0.053342,93638.0,93637.0,0.053339]
[1732103600108,0.053342,93638.0,93637.0,0.243204]
[1732103600595,0.053342,93638.0,93637.0,0.053339]
[1732103600795,0.053342,93638.0,93637.0,0.24315541]
[1732103600997,0.053342,93638.0,93636.0,0.3608]
[1732103601194,0.053341,93637.0,93636.0,0.60395841]
[1732103601496,0.053341,93637.0,93636.0,0.414142]
[1732103601997,0.053341,93637.0,93636.0,0.64330615]
[1732103602199,0.053341,93637.0,93636.0,0.4534639]
[1732103604203,0.053341,93637.0,93636.0,0.4001219]
[1732103606604,0.053341,93637.0,93632.0,0.005]
[1732103606605,0.053343,93633.0,93632.0,0.005]
[1732103606811,0.053343,93633.0,93632.0,0.03882776]
[1732103606997,0.053347,93626.0,93625.0,0.005]
[1732103607305,0.053347,93626.0,93620.0,0.005]
[1732103607306,0.05335,93621.0,93620.0,0.005]
[1732103607612,0.00056001,93633.0,93618.0,0.39913077]
[1732103607904,0.053351,93619.0,93618.0,0.39913077]
[1732103608608,0.06002396,93619.0,93618.0,0.39913077]
[1732103609798,0.053351,93619.0,93618.0,0.39913077]
[1732103612209,0.005,93630.0,93618.0,0.39913077]
[1732103612399,0.05335,93623.0,93622.0,0.15565494]
[1732103613204,0.053347,93628.0,93627.0,0.053346]
[1732103613618,0.09084,93640.0,93631.0,0.053344]
[1732103613619,0.053345,93632.0,93631.0,0.053344]
[1732103613811,0.053345,93632.0,93631.0,0.15564994]
[1732103614114,0.005,93645.0,93631.0,0.10230594]
[1732103614308,0.005,93645.0,93642.0,0.053337]
[1732103614309,0.053338,93643.0,93642.0,0.053337]
[1732103614719,0.053338,93643.0,93642.0,0.24343278]
[1732103615017,0.053338,93643.0,93642.0,0.053337]
[1732103615311,0.053335,93649.0,93648.0,0.053333]
[1732103617720,0.0315,93660.0,93654.0,0.05333]
[1732103617721,0.053331,93655.0,93654.0,0.05333]
[1732103617902,0.053331,93655.0,93654.0,0.41413]
[1732103618816,0.053331,93655.0,93654.0,0.3608]
[1732103621019,0.053331,93655.0,93654.0,0.414131]
[1732103621404,0.053331,93655.0,93654.0,0.3608]
[1732103621610,0.053334,93649.0,93648.0,0.04359277]
[1732103621806,0.053334,93649.0,93648.0,0.03859277]
[1732103622011,0.10230594,93658.0,93642.0,0.449738]
[1732103622012,0.053337,93645.0,93642.0,0.449738]
[1732103622324,0.10230594,93658.0,93643.0,0.053337]
[1732103622325,0.053338,93644.0,93643.0,0.053337]
[1732103623322,0.005,93655.0,93645.0,0.053337]
[1732103623526,0.053338,93643.0,93642.0,0.43014144]
[1732103623719,0.053338,93643.0,93642.0,0.39954144]
[1732103626130,0.053338,93643.0,93642.0,0.42088615]
[1732103626517,0.053338,93643.0,93634.0,0.10230594]
[1732103626518,0.053343,93634.0,93633.0,0.005]
[1732103626824,0.053346,93629.0,93624.0,0.005]
[1732103627022,0.053346,93629.0,93619.0,0.0383]
[1732103627226,0.053346,93629.0,93619.0,0.091651]
[1732103627416,0.053346,93629.0,93620.0,0.05335]
[1732103627616,0.053346,93629.0,93622.0,0.05335]
[1732103628128,0.053346,93629.0,93628.0,0.04007528]
[1732103628313,0.053346,93629.0,93628.0,9.862e-05]
[1732103629116,0.053346,93629.0,93628.0,0.36089862]
[1732103631932,0.053346,93629.0,93628.0,0.41424462]
[1732103632228,0.3658,93640.0,93634.0,0.053342]
[1732103632229,0.05334,93639.0,93634.0,0.053342]
[1732103632526,0.053342,93636.0,93635.0,0.053341]
[1732103633135,0.005,93646.0,93631.0,0.10230594]
[1732103633136,0.053339,93642.0,93641.0,0.053337]
[1732103633326,0.053339,93642.0,93641.0,0.414137]
[1732103638229,0.0307,93654.0,93646.0,0.053334]
[1732103638230,0.053336,93647.0,93646.0,0.053334]
[1732103638422,0.09169557,93665.0,93651.0,0.053331]
[1732103638423,0.053333,93652.0,93651.0,0.053331]
[1732103638940,0.053333,93652.0,93651.0,0.05278578]
[1732103640133,0.19400151,93665.0,93647.0,0.058335]
[1732103640134,0.14067551,93665.0,93647.0,0.058335]
[1732103640328,0.053335,93648.0,93647.0,0.053335]
[1732103641226,0.053335,93648.0,93647.0,0.15564094]
[1732103643028,0.053332,93653.0,93647.0,0.15564094]
[1732103643236,0.053333,93651.0,93650.0,0.60420144]
[1732103643642,0.053333,93651.0,93650.0,0.414133]
[1732103648738,0.053333,93651.0,93650.0,0.3608]
[1732103650143,0.053333,93651.0,93650.0,0.414134]
[1732103650532,0.053333,93651.0,93650.0,0.3608]
[1732103652330,0.053333,93651.0,93650.0,0.414134]
[1732103653833,0.053333,93651.0,93650.0,0.43547859]
[1732103654950,0.053327,93662.0,93661.0,0.053326]
[1732103655146,0.053327,93662.0,93661.0,0.51643194]
[1732103656159,0.09187274,93667.0,93666.0,0.053325]
[1732103656337,0.053325,93667.0,93666.0,0.053325]
[1732103658640,0.089215,93683.0,93665.0,0.15563094]
[1732103658641,0.053325,93666.0,93665.0,0.15563094]
[1732103659146,0.15562194,93681.0,93665.0,0.10230594]
[1732103659342,0.053324,93670.0,93669.0,0.053321]
[1732103660244,0.10230594,93681.0,93680.0,0.053316]
[1732103660245,0.053318,93681.0,93680.0,0.053316]
[1732103660543,0.053318,93681.0,93680.0,0.414116]
[1732103665047,0.053318,93681.0,93680.0,0.3608]
[1732103665239,0.053318,93681.0,93680.0,0.39916472]
[1732103669857,0.053318,93681.0,93680.0,0.45248172]
[1732103670348,0.053318,93681.0,93680.0,0.03836472]
[1732103670550,0.15561694,93690.0,93671.0,0.3608]
[1732103670551,0.053321,93672.0,93671.0,0.3608]
[1732103670857,0.053321,93672.0,93671.0,0.39975674]
[1732103672052,0.15561994,93684.0,93671.0,0.39975674]
[1732103672053,0.46310594,93696.0,93671.0,0.39975674]
[1732103672243,0.053316,93681.0,93680.0,0.3608]
[1732103674751,0.053317,93680.0,93671.0,0.3608]
[1732103674952,0.053321,93672.0,93671.0,0.3608]
[1732103675159,0.053321,93672.0,93671.0,0.414122]
[1732103675349,0.3608,93686.0,93671.0,0.3608]
[1732103675542,0.084413,93687.0,93676.0,0.053319]
[1732103675543,0.053319,93677.0,93676.0,0.053319]
[1732103676149,0.053321,93675.0,93674.0,0.05332]
[1732103676947,0.053318,93679.0,93678.0,0.053317]
[1732103677347,0.0311,93687.0,93686.0,0.053313]
[1732103677348,0.084413,93687.0,93686.0,0.053313]
[1732103677556,0.0311,93687.0,93675.0,0.10230594]
[1732103677756,0.053315,93683.0,93682.0,0.053314]
[1732103677953,0.053314,93685.0,93684.0,0.053314]
[1732103678159,0.033314,93685.0,93684.0,0.053314]
[1732103678674,0.084413,93687.0,93686.0,0.053313]
[1732103679764,0.053311,93690.0,93682.0,0.10230594]
[1732103680056,0.053311,93690.0,93689.0,0.053312]
[1732103680758,0.053314,93686.0,93685.0,0.053314]
[1732103681255,0.053314,93686.0,93682.0,0.10230594]
[1732103681256,0.053315,93683.0,93682.0,0.053315]
[1732103681648,0.053317,93680.0,93679.0,0.3608]
[1732103681852,0.053322,93670.0,93669.0,0.005]
[1732103682049,0.10230594,93680.0,93663.0,0.053326]
[1732103682259,0.053327,93661.0,93660.0,0.3608]
[1732103682461,0.053332,93653.0,93652.0,0.00160131]
[1732103682767,0.053332,93653.0,93652.0,0.03993226]
[1732103683061,0.053332,93653.0,93652.0,0.00160131]
[1732103684088,0.053332,93653.0,93639.0,0.005]
[1732103684089,0.053339,93640.0,93639.0,0.005]
[1732103684281,0.053332,93653.0,93638.0,0.3608]
[1732103684282,0.05334,93639.0,93638.0,0.3608]
[1732103684461,0.05334,93639.0,93638.0,0.40069931]
[1732103685079,0.053338,93642.0,93641.0,0.053339]
[1732103685680,0.053339,93640.0,93639.0,0.10230594]
[1732103686882,0.0324,93646.0,93638.0,0.40069931]
[1732103687094,0.053345,93631.0,93630.0,0.005]
[1732103687283,0.053346,93629.0,93628.0,9.862e-05]
[1732103687781,0.053346,93629.0,93628.0,0.03953644]
[1732103688280,0.053346,93629.0,93620.0,0.00160217]
[1732103688281,0.05335,93621.0,93620.0,0.00160217]
[1732103688670,0.053358,93608.0,93607.0,0.005]
[1732103688878,0.053351,93620.0,93604.0,0.3608]
[1732103688879,0.053359,93605.0,93604.0,0.3608]
[1732103689675,0.053359,93605.0,93604.0,0.39940764]
[1732103691163,0.053359,93605.0,93604.0,0.3608]
[1732103692068,0.053359,93605.0,93600.0,0.03885028]
[1732103692069,0.3608,93608.0,93600.0,0.03885028]
[1732103692255,0.3608,93608.0,93594.0,0.005]
[1732103692256,0.053362,93602.0,93598.0,0.053363]
[1732103692456,0.053362,93602.0,93599.0,0.053363]
[1732103692662,0.3658,93617.0,93598.0,0.10230594]
[1732103692663,0.005,93617.0,93598.0,0.10230594]
[1732103692868,0.005,93617.0,93615.0,0.053354]
[1732103692869,0.00056001,93617.0,93615.0,0.053354]
[1732103693060,0.00056001,93617.0,93614.0,0.3608]
[1732103693061,0.46310594,93628.0,93614.0,0.3608]
[1732103693263,0.053354,93616.0,93614.0,0.3608]
[1732103693966,0.053354,93616.0,93607.0,0.414158]
[1732103693967,0.053358,93608.0,93607.0,0.3608]
[1732103694865,0.053358,93608.0,93607.0,0.3999712]
[1732103695768,0.053361,93603.0,93601.0,0.3608]
[1732103696760,0.0628,93612.0,93601.0,0.3608]
[1732103697068,0.053361,93602.0,93601.0,0.3608]
[1732103699260,0.10230594,93606.0,93600.0,0.03913177]
[1732103699466,0.10230594,93606.0,93592.0,0.3608]
[1732103699467,0.053362,93601.0,93592.0,0.3608]
[1732103699669,0.053366,93593.0,93592.0,0.3608]
[1732103700262,0.05344451,93593.0,93592.0,0.3608]
[1732103700669,0.05344451,93593.0,93592.0,0.4007771]
[1732103701968,7.851e-05,93593.0,93592.0,0.55645004]
[1732103703261,7.851e-05,93593.0,93592.0,2.05645004]
[1732103703672,0.005,93613.0,93612.0,0.053355]
[1732103703974,0.053353,93616.0,93615.0,0.053354]
[1732103704274,0.053353,93616.0,93615.0,1.553354]
[1732103705161,0.053353,93616.0,93612.0,0.36156]
[1732103705472,0.053355,93615.0,93614.0,0.053354]
[1732103705669,0.053352,93620.0,93619.0,0.053351]
[1732103706079,0.10230594,93633.0,93612.0,0.3608]
[1732103706266,0.005,93639.0,93633.0,0.053342]
[1732103706267,0.053343,93634.0,93633.0,0.053342]
[1732103707071,0.053343,93634.0,93632.0,0.3608]
[1732103707072,0.053343,93633.0,93632.0,0.3608]
[1732103707875,0.11872,93650.0,93632.0,0.3608]
[1732103707876,0.10230594,93643.0,93632.0,0.3608]
[1732103708080,0.053343,93633.0,93632.0,0.3608]
[1732103709077,0.053338,93642.0,93632.0,0.414144]
[1732103709388,0.053339,93641.0,93640.0,0.3608]
[1732103711073,0.053339,93641.0,93633.0,0.083543]
[1732103711074,0.053343,93634.0,93633.0,0.0302]
[1732103711274,0.10230594,93650.0,93632.0,0.3608]
[1732103711275,0.053343,93633.0,93632.0,0.3608]
[1732103711465,0.053343,93633.0,93624.0,0.005]
[1732103711466,0.053343,93633.0,93628.0,0.39919947]
[1732103711671,0.053343,93633.0,93620.0,0.3608]
[1732103711672,0.05335,93621.0,93620.0,0.3608]
[1732103711983,0.05335,93621.0,93613.0,0.00160219]
[1732103711984,0.053354,93614.0,93613.0,0.00160219]
[1732103712185,0.0066731,93614.0,93600.0,0.005]
[1732103712474,0.0651,93620.0,93595.0,0.005]
[1732103712475,0.053365,93596.0,93595.0,0.005]
[1732103712676,0.053365,93595.0,93594.0,0.3608]
[1732103713578,0.06003952,93595.0,93594.0,0.3608]
[1732103714682,0.00667452,93595.0,93594.0,0.414166]
[1732103714978,0.11872,93621.0,93594.0,0.3608]
[1732103714979,0.053362,93600.0,93594.0,0.3608]
[1732103715179,0.053362,93600.0,93599.0,0.053363]
[1732103715381,0.06003589,93600.0,93599.0,0.053363]
[1732103716086,0.00667389,93600.0,93597.0,0.10230594]
[1732103716388,0.00667389,93600.0,93594.0,0.36156]
[1732103716389,0.053365,93597.0,93596.0,0.053364]
[1732103716684,0.06003889,93597.0,93596.0,0.053364]
[1732103717783,0.053365,93595.0,93594.0,0.3608]
[1732103717979,0.053367,93591.0,93587.0,0.18959872]
[1732103718179,0.053367,93591.0,93583.0,0.3658]
[1732103718180,0.053371,93584.0,93583.0,0.3608]
[1732103718387,0.053371,93589.0,93588.0,0.053369]
[1732103718983,0.00667502,93589.0,93583.0,0.414172]
[1732103719286,0.053371,93585.0,93584.0,0.05337]
[1732103719473,0.06004602,93585.0,93584.0,0.05337]
[1732103719673,0.00667502,93585.0,93584.0,0.05337]
[1732103719876,0.01661704,93588.0,93583.0,0.40076689]
[1732103720184,0.00667508,93587.0,93584.0,0.18959872]
[1732103720376,0.00667508,93586.0,93584.0,0.18959872]
[1732103720573,0.01661704,93591.0,93585.0,0.15567694]
[1732103720773,0.053367,93591.0,93590.0,0.414168]
[1732103721078,0.00667445,93591.0,93590.0,0.414168]